fUSD/lending_fUSD_20250812
["ID","MTS","AMOUNT","RATE_DAILY","PERIOD"]
[378754881,1755003078515,-400.0,0.00041917,30]
[378754882,1755003078528,-400.0,0.00041917,30]
[378754883,1755003078538,-400.0,0.00041917,30]
[378754884,1755003078549,-167.61986,0.00041917,30]
[378754885,1755003078559,-803.63,0.00041917,30]
[378754886,1755003078568,-167.61986,0.00041917,30]
[378754887,1755003078578,-403.57,0.00041917,30]
[378754888,1755003078590,-400.0,0.00041917,30]
[378754889,1755003078609,-400.0,0.00041917,30]
[378754890,1755003078629,-432.23,0.00041917,30]
[378754891,1755003078647,-400.0,0.00041917,30]
[378754892,1755003078666,-400.0,0.00041917,30]
[378754893,1755003078680,-400.0,0.00041917,30]
[378754894,1755003078699,-226.35,0.00041917,30]
[378754895,1755003078718,-400.0,0.00041917,30]
[378754896,1755003078737,-400.0,0.00041917,30]
[378754897,1755003078754,-400.0,0.00041917,30]
[378754898,1755003078775,-290.39180274,0.00041917,30]
[378754899,1755003078792,-400.0,0.00041917,30]
[378754900,1755003078811,-400.0,0.00041917,30]
[378754901,1755003078828,-400.0,0.00041917,30]
[378754902,1755003078841,-400.0,0.00041917,30]
[378754903,1755003078860,-403.73,0.00041917,30]
[378754904,1755003078872,-400.0,0.00041917,30]
[378754905,1755003078887,-506.69,0.00041917,30]
[378754906,1755003078904,-400.0,0.00041917,30]
[378754907,1755003078916,-400.0,0.00041917,30]
[378754908,1755003078932,-400.0,0.00041917,30]
[378754909,1755003078947,-400.0,0.00041917,30]
[378754910,1755003078962,-400.0,0.00041917,30]
[378754911,1755003078978,-535.79,0.00041917,30]
[378754912,1755003078994,-400.0,0.00041917,30]
[378754913,1755003079009,-400.0,0.00041917,30]
[378754914,1755003079029,-1369.1,0.00041917,30]
[378754915,1755003079045,-400.0,0.00041917,30]
[378754916,1755003079059,-400.0,0.00041917,30]
[378754917,1755003079074,-400.0,0.00041917,30]
[378754918,1755003079090,-460.46,0.00041917,30]
[378754919,1755003079104,-1677.37,0.00041917,30]
[378754920,1755003079120,-400.0,0.00041917,30]
[378754921,1755003079134,-400.0,0.00041917,30]
[378754922,1755003079149,-400.0,0.00041917,30]
[378754923,1755003079163,-400.0,0.00041917,30]
[378754924,1755003079179,-400.0,0.00041917,30]
[378754925,1755003079194,-400.0,0.00041917,30]
[378754926,1755003079209,-400.0,0.00041917,30]
[378754927,1755003079225,-400.0,0.00041917,30]
[378754928,1755003079240,-400.0,0.00041917,30]
[378754929,1755003079255,-638.32,0.00041917,30]
[378754930,1755003079270,-400.0,0.00041917,30]
[378754931,1755003079289,-400.0,0.00041917,30]
[378754932,1755003079305,-400.0,0.00041917,30]
[378754933,1755003079320,-557.52,0.00041917,30]
[378754934,1755003079336,-720.04,0.00041917,30]
[378754935,1755003079350,-400.0,0.00041917,30]
[378754936,1755003079366,-520.89729289,0.00041917,30]
[378754937,1755003079381,-400.0,0.00041917,30]
[378754938,1755003079397,-405.71,0.00041917,30]
[378754939,1755003079413,-400.0,0.00041917,30]
[378754940,1755003079428,-400.0,0.00041917,30]
[378754941,1755003079442,-1407.52,0.00041917,30]
[378754942,1755003079457,-400.0,0.00041917,30]
[378754943,1755003079472,-400.0,0.00041917,30]
[378754944,1755003079487,-400.0,0.00041917,30]
[378754945,1755003079503,-400.0,0.00041917,30]
[378754946,1755003079517,-400.0,0.00041917,30]
[378754947,1755003079534,-671.93,0.00041917,30]
[378754948,1755003079550,-535.29,0.00041917,30]
[378754949,1755003079564,-400.0,0.00041917,30]
[378754950,1755003079579,-400.0,0.00041917,30]
[378754951,1755003079597,-400.0,0.00041917,30]
[378754952,1755003079615,-537.89,0.00041917,30]
[378754953,1755003079632,-519.49,0.00041917,30]
[378754954,1755003079647,-400.0,0.00041917,30]
[378754955,1755003079662,-641.09,0.00041917,30]
[378754956,1755003079676,-400.0,0.00041917,30]
[378754957,1755003079690,-400.0,0.00041917,30]
[378754958,1755003079705,-697.03,0.00041917,30]
[378754959,1755003079721,-740.0,0.00041917,30]
[378754960,1755003079732,-357.28,0.00041917,30]
[378754961,1755003079742,-400.0,0.00041917,30]
[378754962,1755003079751,-400.0,0.00041917,30]
[378754963,1755003079761,-494.78,0.00041917,30]
[378754964,1755003079770,-487.81615199,0.00041917,30]
[378754965,1755003079783,-400.0,0.00041917,30]
[378754966,1755003079793,-400.0,0.00041917,30]
[378754967,1755003079937,-400.0,0.00041917,30]
[378754968,1755003080008,-595.64,0.00041917,30]
[378754969,1755003080019,-400.0,0.00041917,30]
[378754970,1755003080031,-695.15,0.00041917,30]
[378754971,1755003080041,-400.0,0.00041917,30]
[378754972,1755003080052,-400.0,0.00041917,30]
[378754973,1755003080062,-243.94231511,0.00041917,30]
[378754974,1755003080072,-705.13,0.00041917,30]
[378754975,1755003080082,-400.0,0.00041917,30]
[378754976,1755003080092,-435.9,0.00041917,30]
[378754977,1755003080102,-715.11,0.00041917,30]
[378754978,1755003080112,-469.65,0.00041917,30]
[378754979,1755003080121,-400.0,0.00041917,30]
[378754980,1755003080131,-537.00923707,0.00041917,30]
[378754981,1755003080142,-400.0,0.00041917,30]
[378754982,1755003080152,-400.0,0.00041917,30]
[378754983,1755003080162,-316.32717196,0.00041917,30]
[378754984,1755003080172,-832.68,0.00041917,30]
[378754985,1755003080183,-400.0,0.00041917,30]
[378754986,1755003080193,-509.52544724,0.00041917,30]
[378754987,1755003080203,-400.0,0.00041917,30]
[378754988,1755003080213,-400.0,0.00041917,30]
[378754989,1755003080223,-400.0,0.00041917,30]
[378754990,1755003080233,-549.29,0.00041917,30]
[378754991,1755003080243,-401.67917437,0.00041917,30]
[378754992,1755003080253,-626.92,0.00041917,30]
[378754993,1755003080263,-400.0,0.00041917,30]
[378754994,1755003080273,-435.17,0.00041917,30]
[378754995,1755003080287,-400.0,0.00041917,30]
[378754996,1755003080297,-400.0,0.00041917,30]
[378754997,1755003080307,-400.0,0.00041917,30]
[378754998,1755003080317,-400.0,0.00041917,30]
[378754999,1755003080327,-400.0,0.00041917,30]
[378755000,1755003080336,-400.0,0.00041917,30]
[378755001,1755003080346,-400.0,0.00041917,30]
[378755002,1755003080356,-400.0,0.00041917,30]
[378755003,1755003080365,-747.94,0.00041917,30]
[378755004,1755003080375,-400.0,0.00041917,30]
[378755005,1755003080385,-400.0,0.00041917,30]
[378755006,1755003080395,-400.0,0.00041917,30]
[378755007,1755003080405,-400.0,0.00041917,30]
[378755008,1755003080415,-400.0,0.00041917,30]
[378755009,1755003080425,-508.17,0.00041917,30]
[378755010,1755003080435,-400.0,0.00041917,30]
[378755011,1755003080445,-400.0,0.00041917,30]
[378755012,1755003080454,-400.0,0.00041917,30]
[378755013,1755003080465,-400.0,0.00041917,30]
[378755014,1755003080475,-493.89,0.00041917,30]
[378755015,1755003080485,-400.0,0.00041917,30]
[378755016,1755003080495,-400.0,0.00041917,30]
[378755017,1755003080505,-400.0,0.00041917,30]
[378755018,1755003080514,-400.0,0.00041917,30]
[378755019,1755003080523,-569.03,0.00041917,30]
[378755020,1755003080537,-400.0,0.00041917,30]
[378755021,1755003080547,-400.0,0.00041917,30]
[378755022,1755003080556,-1304.68,0.00041917,30]
[378755023,1755003080566,-424.58929542,0.00041917,30]
[378755024,1755003080576,-405.85598527,0.00041917,30]
[378755025,1755003080587,-472.71,0.00041917,30]
[378755026,1755003080601,-400.0,0.00041917,30]
[378755027,1755003080622,-400.0,0.00041917,30]
[378755028,1755003080631,-485.21,0.00041917,30]
[378755029,1755003080644,-518.03381139,0.00041917,30]
[378755030,1755003080654,-400.0,0.00041917,30]
[378755031,1755003080663,-1427.73,0.00041917,30]
[378755032,1755003080674,-400.0,0.00041917,30]
[378755033,1755003080684,-400.0,0.00041917,30]
[378755034,1755003080694,-400.0,0.00041917,30]
[378755035,1755003080704,-400.0,0.00041917,30]
[378755036,1755003080714,-400.0,0.00041917,30]
[378755037,1755003080724,-354.92263586,0.00041917,30]
[378755038,1755003080733,-400.0,0.00041917,30]
[378755039,1755003080743,-400.0,0.00041917,30]
[378755040,1755003080753,-400.0,0.00041917,30]
[378755041,1755003080762,-400.0,0.00041917,30]
[378755042,1755003080772,-400.0,0.00041917,30]
[378755043,1755003080785,-668.75,0.00041917,30]
[378755044,1755003080794,-400.0,0.00041917,30]
[378755045,1755003080804,-599.71,0.00041917,30]
[378755046,1755003080814,-400.0,0.00041917,30]
[378755047,1755003080823,-400.0,0.00041917,30]
[378755048,1755003080833,-400.0,0.00041917,30]
[378755049,1755003080843,-1550.59,0.00041917,30]
[378755050,1755003080852,-400.0,0.00041917,30]
[378755051,1755003080862,-400.0,0.00041917,30]
[378755052,1755003080872,-400.0,0.00041917,30]
[378755053,1755003080882,-400.0,0.00041917,30]
[378755054,1755003080892,-400.0,0.00041917,30]
[378755055,1755003080902,-2263.04,0.00041917,30]
[378755056,1755003080912,-400.0,0.00041917,30]
[378755057,1755003080921,-801.81,0.00041917,30]
[378755058,1755003080932,-400.0,0.00041917,30]
[378755059,1755003080941,-517.14,0.00041917,30]
[378755060,1755003080951,-400.0,0.00041917,30]
[378755061,1755003080960,-1000.0,0.00041917,2]
[378755062,1755003080969,-416.76,0.00041917,30]
[378755063,1755003080979,-606.34,0.00041917,7]
[378755064,1755003080988,-463.53,0.00041917,30]
[378755065,1755003080998,-1058.21,0.00041917,30]
[378755066,1755003081008,-205.5466858,0.00041917,30]
[378755067,1755003081018,-400.0,0.00041917,30]
[378755068,1755003081031,-400.0,0.00041917,30]
[378755069,1755003081041,-395.60942692,0.00041917,30]
[378755070,1755003081052,-400.0,0.00041917,30]
[378755071,1755003081062,-419.28642727,0.00041917,30]
[378755072,1755003081072,-400.0,0.00041917,30]
[378755073,1755003081082,-400.0,0.00041917,30]
[378755074,1755003081092,-400.0,0.00041917,30]
[378755075,1755003081103,-400.0,0.00041917,30]
[378755076,1755003081113,-400.0,0.00041917,30]
[378755077,1755003081123,-661.34,0.00041917,30]
[378755078,1755003081132,-453.89,0.00041917,30]
[378755079,1755003081146,-3468.76,0.00041917,30]
[378755080,1755003081156,-400.0,0.00041917,30]
[378755081,1755003081166,-747.81,0.00041917,30]
[378755082,1755003081177,-413.27,0.00041917,30]
[378755083,1755003081187,-567.5,0.00041917,30]
[378755084,1755003081198,-689.53,0.00041917,30]
[378755085,1755003081208,-400.0,0.00041917,30]
[378755086,1755003081217,-408.15526921,0.00041917,30]
[378755087,1755003081227,-414.54,0.00041917,30]
[378755088,1755003081237,-400.0,0.00041917,30]
[378755089,1755003081247,-3359.66,0.00041917,30]
[378755090,1755003081256,-400.0,0.00041917,30]
[378755091,1755003081266,-400.0,0.00041917,30]
[378755092,1755003081280,-449.21,0.00041917,30]
[378755093,1755003081291,-400.0,0.00041917,30]
[378755094,1755003081301,-704.22,0.00041917,30]
[378755095,1755003081311,-400.0,0.00041917,30]
[378755096,1755003081321,-400.0,0.00041917,30]
[378755097,1755003081331,-400.0,0.00041917,30]
[378755098,1755003081341,-400.0,0.00041917,30]
[378755099,1755003081355,-400.0,0.00041917,30]
[378755100,1755003081364,-400.0,0.00041917,30]
[378755101,1755003081375,-400.0,0.00041917,30]
[378755102,1755003081384,-400.0,0.00041917,30]
[378755103,1755003081394,-632.29,0.00041917,30]
[378755104,1755003081404,-466.87,0.00041917,30]
[378755105,1755003081414,-400.0,0.00041917,30]
[378755106,1755003081424,-400.0,0.00041917,30]
[378755107,1755003081434,-400.0,0.00041917,30]
[378755108,1755003081443,-400.0,0.00041917,30]
[378755109,1755003081453,-494.37,0.00041917,30]
[378755110,1755003081462,-967.192467,0.00041917,30]
[378755111,1755003081471,-400.0,0.00041917,30]
[378755112,1755003081481,-400.0,0.00041917,30]
[378755113,1755003081491,-400.0,0.00041917,30]
[378755114,1755003081500,-601.38,0.00041917,30]
[378755115,1755003081510,-400.0,0.00041917,30]
[378755116,1755003081520,-400.0,0.00041917,30]
[378755117,1755003081532,-400.0,0.00041917,30]
[378755118,1755003081542,-710.1,0.00041917,30]
[378755119,1755003081551,-967.192475,0.00041917,30]
[378755120,1755003081561,-400.0,0.00041917,30]
[378755121,1755003081575,-400.0,0.00041917,30]
[378755122,1755003081585,-400.0,0.00041917,30]
[378755123,1755003081594,-400.0,0.00041917,30]
[378755124,1755003081603,-400.0,0.00041917,30]
[378755125,1755003081613,-400.0,0.00041917,30]
[378755126,1755003081625,-400.0,0.00041917,30]
[378755127,1755003081635,-400.0,0.00041917,30]
[378755128,1755003081645,-400.0,0.00041917,30]
[378755129,1755003081654,-400.0,0.00041917,30]
[378755130,1755003081663,-929.42,0.00041917,30]
[378755131,1755003081673,-400.0,0.00041917,30]
[378755132,1755003081683,-400.0,0.00041917,30]
[378755133,1755003081693,-654.03,0.00041917,30]
[378755134,1755003081702,-400.0,0.00041917,30]
[378755135,1755003081712,-400.0,0.00041917,30]
[378755136,1755003081721,-400.0,0.00041917,30]
[378755137,1755003081731,-400.0,0.00041917,30]
[378755138,1755003081741,-683.7,0.00041917,30]
[378755139,1755003081750,-727.2,0.00041917,30]
[378755140,1755003081759,-1130.55,0.00041917,30]
[378755141,1755003081769,-400.0,0.00041917,30]
[378755142,1755003081781,-400.0,0.00041917,30]
[378755143,1755003081791,-396.02650496,0.00041917,30]
[378755144,1755003081800,-400.0,0.00041917,30]
[378755145,1755003081810,-400.0,0.00041917,30]
[378755146,1755003081820,-534.00076817,0.00041917,30]
[378755147,1755003081829,-400.0,0.00041917,30]
[378755148,1755003081838,-400.0,0.00041917,30]
[378755149,1755003081847,-693.76,0.00041917,30]
[378755150,1755003081857,-400.0,0.00041917,30]
[378755151,1755003081866,-2521.4,0.00041917,30]
[378755152,1755003081875,-765.99,0.00041917,30]
[378755153,1755003081885,-400.0,0.00041917,30]
[378755154,1755003081894,-400.0,0.00041917,30]
[378755155,1755003081903,-408.27,0.00041917,30]
[378755156,1755003081912,-400.0,0.00041917,30]
[378755157,1755003081921,-674.11,0.00041917,30]
[378755158,1755003081930,-400.0,0.00041917,30]
[378755159,1755003081940,-463.15,0.00041917,30]
[378755160,1755003081949,-400.0,0.00041917,30]
[378755161,1755003081958,-515.85,0.00041917,30]
[378755162,1755003081968,-400.0,0.00041917,30]
[378755163,1755003081977,-400.0,0.00041917,30]
[378755164,1755003081986,-400.0,0.00041917,14]
[378755165,1755003081996,-406.6779643,0.00041917,30]
[378755166,1755003082005,-400.0,0.00041917,30]
[378755167,1755003082015,-400.0,0.00041917,30]
[378755168,1755003082023,-400.0,0.00041917,30]
[378755169,1755003082036,-726.38,0.00041917,30]
[378755170,1755003082045,-400.0,0.00041917,30]
[378755171,1755003082054,-400.0,0.00041917,30]
[378755172,1755003082063,-1713.36,0.00041917,30]
[378755173,1755003082073,-400.0,0.00041917,30]
[378755174,1755003082082,-564.91,0.00041917,30]
[378755175,1755003082092,-461.85,0.00041917,30]
[378755176,1755003082101,-1012.08079547,0.00041917,30]
[378755177,1755003082111,-622.29,0.00041917,30]
[378755178,1755003082120,-576.83,0.00041917,30]
[378755179,1755003082130,-558.07,0.00041917,30]
[378755180,1755003082138,-400.0,0.00041917,30]
[378755181,1755003082148,-400.0,0.00041917,30]
[378755182,1755003082157,-151.0,0.00041917,30]
[378755183,1755003082166,-307.50693385,0.00041917,30]
[378755184,1755003082175,-400.0,0.00041917,30]
[378755185,1755003082184,-400.0,0.00041917,30]
[378755186,1755003082193,-400.0,0.00041917,30]
[378755187,1755003082202,-404.19244572,0.00041917,30]
[378755188,1755003082211,-756.4,0.00041917,30]
[378755189,1755003082220,-411.51142488,0.00041917,30]
[378755190,1755003082229,-400.0,0.00041917,30]
[378755191,1755003082239,-471.31,0.00041917,30]
[378755192,1755003082248,-400.0,0.00041917,30]
[378755193,1755003082257,-405.38589844,0.00041917,30]
[378755194,1755003082267,-462.1,0.00041917,30]
[378755195,1755003082278,-400.0,0.00041917,30]
[378755196,1755003082287,-400.0,0.00041917,30]
[378755197,1755003082296,-404.9651574,0.00041917,30]
[378755198,1755003082305,-400.0,0.00041917,30]
[378755199,1755003082314,-555.74,0.00041917,30]
[378755200,1755003082323,-506.60500566,0.00041917,30]
[378755201,1755003082332,-400.0,0.00041917,30]
[378755202,1755003082342,-400.0,0.00041917,30]
[378755203,1755003082353,-400.0,0.00041917,30]
[378755204,1755003082363,-740.93,0.00041917,30]
[378755205,1755003082374,-400.0,0.00041917,30]
[378755206,1755003082388,-400.0,0.00041917,30]
[378755207,1755003082398,-400.0,0.00041917,30]
[378755208,1755003082408,-440.15,0.00041917,30]
[378755209,1755003082418,-400.0,0.00041917,30]
[378755210,1755003082428,-400.0,0.00041917,30]
[378755211,1755003082438,-400.0,0.00041917,30]
[378755212,1755003082448,-413.22,0.00041917,30]
[378755213,1755003082458,-400.0,0.00041917,30]
[378755214,1755003082467,-400.0,0.00041917,30]
[378755215,1755003082477,-400.0,0.00041917,30]
[378755216,1755003082487,-500.0,0.00041918,5]
[378755217,1755003082497,-3399.17565231,0.00041974,15]
[378755218,1755003082507,-778.98728017,0.00041998,15]
[378755219,1755003082516,-500.0,0.00042,120]
[378755220,1755003082527,-10000.0,0.00042,120]
[378755221,1755003082536,-166.626604,0.00042012,28]
[378755222,1755003082546,-250.0,0.00042143,5]
[378755223,1755003082555,-250.0,0.00042143,5]
[378755224,1755003082565,-999.0,0.0004218,120]
[378755225,1755003082574,-500.0,0.0004219,30]
[378755226,1755003082584,-1071.3,0.0004219,30]
[378755227,1755003082594,-500.0,0.0004219,30]
[378755228,1755003082603,-500.0,0.0004219,2]
[378755229,1755003082614,-500.0,0.0004219,30]
[378755230,1755003082628,-737.87,0.0004219,30]
[378755231,1755003082638,-500.0,0.0004219,30]
[378755232,1755003082649,-682.48,0.0004219,30]
[378755233,1755003082658,-500.0,0.0004219,30]
[378755234,1755003082670,-597.51,0.0004219,30]
[378755235,1755003082679,-1807.39,0.0004219,30]
[378755236,1755003082690,-1894.03,0.0004219,30]
[378755237,1755003082700,-453.45164378,0.00042191,30]
[378755238,1755003082710,-400.0,0.00042191,30]
[378755239,1755003082720,-400.0,0.00042191,30]
[378755240,1755003082730,-400.0,0.00042191,30]
[378755241,1755003082740,-400.0,0.00042191,30]
[378755242,1755003082883,-366.35661188,0.00042191,30]
[378755243,1755003082892,-400.0,0.00042191,30]
[378755244,1755003082902,-400.0,0.00042191,30]
[378755245,1755003082912,-400.0,0.00042191,30]
[378755246,1755003082921,-646.53,0.00042191,30]
[378755247,1755003082930,-400.0,0.00042191,30]
[378755248,1755003082939,-400.0,0.00042191,30]
[378755249,1755003082949,-400.0,0.00042191,30]
[378755250,1755003082959,-400.0,0.00042191,30]
[378755251,1755003082969,-400.0,0.00042191,30]
[378755252,1755003082978,-400.0,0.00042191,30]
[378755253,1755003082987,-400.0,0.00042191,30]
[378755254,1755003082997,-400.0,0.00042191,30]
[378755255,1755003083006,-400.0,0.00042191,30]
[378755256,1755003083016,-544.151326,0.00042191,30]
[378755257,1755003083025,-544.151326,0.00042191,30]
[378755258,1755003083037,-501.85,0.00042191,30]
[378755259,1755003083047,-293.77,0.00042191,30]
[378755260,1755003083057,-266.53,0.00042191,30]
[378755261,1755003083067,-400.0,0.00042191,30]
[378755262,1755003083077,-400.0,0.00042191,30]
[378755263,1755003083087,-400.0,0.00042191,30]
[378755264,1755003083097,-400.0,0.00042191,30]
[378755265,1755003083106,-542.67,0.00042191,30]
[378755266,1755003083117,-400.0,0.00042191,30]
[378755267,1755003083127,-400.0,0.00042191,30]
[378755268,1755003083137,-400.0,0.00042191,30]
[378755269,1755003083146,-400.0,0.00042191,30]
[378755270,1755003083156,-400.0,0.00042191,30]
[378755271,1755003083165,-400.0,0.00042191,30]
[378755272,1755003083175,-400.0,0.00042191,30]
[378755273,1755003083184,-400.0,0.00042191,30]
[378755274,1755003083193,-400.0,0.00042191,30]
[378755275,1755003083202,-400.0,0.00042191,30]
[378755276,1755003083212,-552.24,0.00042191,30]
[378755277,1755003083221,-400.0,0.00042191,30]
[378755278,1755003083230,-400.0,0.00042191,30]
[378755279,1755003083239,-400.0,0.00042191,30]
[378755280,1755003083249,-411.53,0.00042191,30]
[378755281,1755003083259,-360.4,0.00042191,30]
[378755282,1755003083268,-400.0,0.00042191,30]
[378755283,1755003083279,-400.0,0.00042191,30]
[378755284,1755003083292,-400.0,0.00042191,30]
[378755285,1755003083308,-400.0,0.00042191,30]
[378755286,1755003083317,-400.0,0.00042191,30]
[378755287,1755003083327,-687.38,0.00042191,30]
[378755288,1755003083336,-400.0,0.00042191,30]
[378755289,1755003083346,-400.0,0.00042191,30]
[378755290,1755003083355,-400.0,0.00042191,30]
[378755291,1755003083364,-400.0,0.00042191,30]
[378755292,1755003083373,-400.0,0.00042191,30]
[378755293,1755003083383,-400.0,0.00042191,30]
[378755294,1755003083392,-648.2,0.00042191,30]
[378755295,1755003083401,-400.0,0.00042191,30]
[378755296,1755003083411,-400.0,0.00042191,30]
[378755297,1755003083420,-300.35240891,0.00042191,30]
[378755298,1755003083430,-400.0,0.00042191,30]
[378755299,1755003083439,-401.27,0.00042191,30]
[378755300,1755003083448,-400.0,0.00042191,30]
[378755301,1755003083457,-400.0,0.00042191,30]
[378755302,1755003083466,-400.0,0.00042191,30]
[378755303,1755003083476,-400.0,0.00042191,30]
[378755304,1755003083486,-400.0,0.00042191,30]
[378755305,1755003083496,-400.0,0.00042191,30]
[378755306,1755003083505,-400.0,0.00042191,30]
[378755307,1755003083514,-400.0,0.00042191,30]
[378755308,1755003083524,-316.76,0.00042191,30]
[378755309,1755003083538,-400.0,0.00042191,30]
[378755310,1755003083547,-400.0,0.00042191,30]
[378755311,1755003083557,-424.7,0.00042191,30]
[378755312,1755003083567,-541.9,0.00042191,30]
[378755313,1755003083576,-268.653618,0.00042191,30]
[378755314,1755003083586,-400.0,0.00042191,30]
[378755315,1755003083596,-400.0,0.00042191,30]
[378755316,1755003083605,-565.63,0.00042191,30]
[378755317,1755003083616,-400.0,0.00042191,30]
[378755318,1755003083628,-400.0,0.00042191,30]
[378755319,1755003083638,-592.88,0.00042191,30]
[378755320,1755003083648,-400.0,0.00042191,30]
[378755321,1755003083657,-4791.08,0.00042191,30]
[378755322,1755003083666,-157.21879326,0.00042191,30]
[378755323,1755003083676,-400.0,0.00042191,30]
[378755324,1755003083685,-400.0,0.00042191,30]
[378755325,1755003083695,-400.0,0.00042191,30]
[378755326,1755003083704,-400.0,0.00042191,30]
[378755327,1755003083714,-400.0,0.00042191,30]
[378755328,1755003083723,-400.0,0.00042191,30]
[378755329,1755003083733,-475.4,0.00042191,30]
[378755330,1755003083743,-421.82,0.00042191,30]
[378755331,1755003083752,-400.0,0.00042191,30]
[378755332,1755003083762,-400.0,0.00042191,30]
[378755333,1755003083771,-400.0,0.00042191,30]
[378755334,1755003083782,-157.703964,0.00042191,30]
[378755335,1755003083791,-275.36456,0.00042191,30]
[378755336,1755003083801,-400.0,0.00042191,30]
[378755337,1755003083810,-400.0,0.00042191,30]
[378755338,1755003083820,-400.0,0.00042191,30]
[378755339,1755003083829,-432.57,0.00042191,30]
[378755340,1755003083839,-400.0,0.00042191,30]
[378755341,1755003083848,-419.5,0.00042191,30]
[378755342,1755003083858,-400.0,0.00042191,30]
[378755343,1755003083867,-400.0,0.00042191,30]
[378755344,1755003083877,-400.0,0.00042191,30]
[378755345,1755003083887,-400.0,0.00042191,30]
[378755346,1755003083896,-280.94857507,0.00042191,30]
[378755347,1755003083906,-456.67215428,0.00042191,30]
[378755348,1755003083916,-400.0,0.00042191,30]
[378755349,1755003083926,-400.0,0.00042191,30]
[378755350,1755003083935,-400.0,0.00042191,30]
[378755351,1755003083944,-400.0,0.00042191,30]
[378755352,1755003083953,-400.0,0.00042191,30]
[378755353,1755003083962,-400.0,0.00042191,30]
[378755354,1755003083972,-400.0,0.00042191,30]
[378755355,1755003083982,-400.0,0.00042191,30]
[378755356,1755003083991,-400.0,0.00042191,30]
[378755357,1755003084000,-400.0,0.00042191,30]
[378755358,1755003084010,-500.94,0.00042191,30]
[378755359,1755003084020,-400.0,0.00042191,30]
[378755360,1755003084031,-400.0,0.00042191,30]
[378755361,1755003084041,-649.81,0.00042191,30]
[378755362,1755003084051,-400.0,0.00042191,30]
[378755363,1755003084061,-400.0,0.00042191,30]
[378755364,1755003084071,-400.0,0.00042191,30]
[378755365,1755003084081,-400.0,0.00042191,30]
[378755366,1755003084091,-400.0,0.00042191,30]
[378755367,1755003084101,-400.0,0.00042191,30]
[378755368,1755003084110,-400.0,0.00042191,30]
[378755369,1755003084120,-400.0,0.00042191,30]
[378755370,1755003084129,-400.0,0.00042191,30]
[378755371,1755003084138,-656.69,0.00042191,30]
[378755372,1755003084148,-469.11,0.00042191,30]
[378755373,1755003084157,-426.91,0.00042191,30]
[378755374,1755003084167,-400.0,0.00042191,30]
[378755375,1755003084176,-400.0,0.00042191,30]
[378755376,1755003084185,-400.0,0.00042191,30]
[378755377,1755003084195,-400.0,0.00042191,30]
[378755378,1755003084204,-400.0,0.00042191,30]
[378755379,1755003084213,-400.0,0.00042191,30]
[378755380,1755003084222,-400.0,0.00042191,30]